bitfinex-derivatives/quotes_ETHF0:USTF0_20250213
["timestamp","ask_amount","ask_price","bid_price","bid_amount"]
[1739462019263,3.12e-06,2653.3,2653.2,6.75369]
[1739462019460,3.12e-06,2653.3,2653.2,7.31501012]
[1739462019661,3.12e-06,2653.3,2653.2,1.31501012]
[1739462020971,3.12e-06,2653.3,2653.2,7.31501012]
[1739462021265,0.5908,2654.4,2653.2,7.11618571]
[1739462021470,0.75333,2654.5,2654.4,0.75334]
[1739462021668,0.75336,2654.4,2654.3,0.75337]
[1739462021871,3.88612399,2654.7,2654.2,3.2078]
[1739462022059,3.88612399,2654.7,2654.0,1.931]
[1739462022060,1.88327,2654.6,2654.1,0.75342]
[1739462022264,3.88612399,2654.7,2654.2,3.2078]
[1739462022570,0.75339,2654.3,2654.2,0.75339]
[1739462022774,0.75337,2654.4,2654.3,0.75338]
[1739462022963,0.00565312,2654.6,2654.0,1.931]
[1739462023160,3.88612399,2654.4,2653.9,3.2078]
[1739462023471,0.75342,2654.2,2654.1,0.75343]
[1739462023865,3.88612399,2654.4,2653.9,3.2078]
[1739462024064,0.75338,2654.3,2654.1,0.75341]
[1739462024270,3.88612399,2654.4,2653.9,3.2078]
[1739462024460,0.75339,2654.3,2654.2,0.7534]
[1739462024661,0.75355,2653.7,2653.6,3.96137]
[1739462024865,4.63968399,2653.7,2653.3,3.2078]
[1739462025071,3.88612399,2653.7,2653.6,0.75358]
[1739462025777,3.88612399,2653.7,2653.3,5.09191]
[1739462025778,3.88612399,2653.7,2653.5,0.75358]
[1739462025966,3.88612399,2653.7,2653.6,0.75358]
[1739462026368,7.84739399,2654.0,2653.8,0.75351]
[1739462026671,7.09392399,2654.0,2653.3,3.2078]
[1739462026869,0.75356,2653.7,2653.3,3.2078]
[1739462027667,0.75356,2653.7,2653.5,0.75358]
[1739462027969,0.75356,2653.7,2653.6,0.75358]
[1739462028274,0.75356,2653.7,2653.5,0.75358]
[1739462028773,0.75355,2653.7,2653.6,0.75357]
[1739462029478,7.09392399,2654.0,2653.3,3.2078]
[1739462029676,0.75358,2653.7,2653.5,0.7536]
[1739462030173,7.09392399,2654.0,2653.3,3.2078]
[1739462030375,0.75356,2653.7,2653.6,0.75357]
[1739462030673,7.09392399,2654.0,2653.6,0.75357]
[1739462030866,7.09392399,2654.0,2653.3,3.2078]
[1739462031072,0.75356,2653.7,2653.6,0.75357]
[1739462032983,0.75359,2653.6,2653.5,0.75358]
[1739462033478,0.75361,2653.5,2653.4,0.75361]
[1739462033779,1.88375,2653.9,2653.3,3.2078]
[1739462033975,0.7536,2653.6,2653.5,0.7536]
[1739462034167,3.88612399,2653.7,2653.3,3.2078]
[1739462034476,0.75363,2653.4,2653.3,3.2078]
[1739462034680,0.75363,2653.4,2653.3,3.96146]
[1739462034867,3.2078,2653.4,2652.9,0.5696]
[1739462035179,3.2078,2653.4,2652.3,0.63900135]
[1739462035180,3.2078,2653.0,2652.1,3.22232]
[1739462035378,0.75395,2652.3,2652.1,3.97631]
[1739462035573,7.09392399,2652.7,2652.1,3.22232]
[1739462035775,1.1705,2652.6,2652.1,3.22232]
[1739462036180,1.1705,2652.6,2652.5,0.75389]
[1739462037289,3.2078,2652.7,2652.1,3.22232]
[1739462037584,0.7539,2652.5,2652.1,3.22232]
[1739462037885,0.75388,2652.6,2652.4,0.75392]
[1739462038391,3.7847,2652.7,2652.4,0.75392]
[1739462038392,0.5769,2652.7,2652.6,0.75386]
[1739462038783,0.00565312,2652.8,2652.4,3.2078]
[1739462038985,0.00565312,2652.8,2652.7,3.96163]
[1739462039283,9.02957711,2652.8,2651.5,3.2078]
[1739462039488,3.2078,2652.2,2651.5,3.2078]
[1739462039690,0.5773,2652.1,2651.8,3.2078]
[1739462040188,0.5773,2652.1,2651.5,3.2078]
[1739462040392,3.2078,2651.9,2651.3,0.5643]
[1739462040889,3.2078,2651.9,2651.2,3.96205]
[1739462041086,3.2078,2651.9,2651.2,3.96204]
[1739462041287,0.75416,2651.6,2651.3,0.75421]
[1739462041487,0.75423,2651.3,2651.2,3.2078]
[1739462042093,0.75427,2651.2,2650.9,0.75433]
[1739462042290,3.2078,2651.5,2650.9,0.75433]
[1739462042489,0.75426,2651.2,2650.9,0.75433]
[1739462042788,0.56844312,2651.4,2650.8,3.21345312]
[1739462043195,1.1821,2651.3,2650.8,0.00565312]
[1739462043394,0.7543,2651.1,2650.8,0.00565312]
[1739462043598,3.2078,2651.2,2650.8,0.76000312]
[1739462043893,0.75434,2651.0,2650.8,0.00565312]
[1739462044096,9.02492399,2650.9,2649.9,3.76276907]
[1739462044285,7.09392399,2650.0,2649.5,0.55503635]
[1739462044483,7.09392399,2649.6,2648.4,4.3341]
[1739462044790,0.75486,2649.1,2648.7,3.2078]
[1739462044986,3.88612399,2649.2,2648.4,5.08915]
[1739462045194,3.88612399,2649.2,2648.6,0.75499]
[1739462045396,3.88612399,2648.9,2648.4,3.7801]
[1739462045698,0.00565312,2649.1,2648.7,3.2078]
[1739462046191,3.12e-06,2649.1,2649.0,3.96269]
[1739462046387,3.12e-06,2649.1,2649.0,11.89369]
[1739462046987,3.12e-06,2649.1,2649.0,52.69369]
[1739462047188,3.2078,2650.5,2649.0,53.0842]
[1739462047395,3.2078,2650.8,2650.1,3.2078]
[1739462047703,3.2078,2650.8,2650.4,3.2078]
[1739462048593,0.00565312,2650.9,2650.8,0.75437]
[1739462049599,0.00565312,2650.9,2650.8,6.75437]
[1739462049795,0.5525,2652.0,2650.8,6.0]
[1739462050097,0.5525,2652.0,2651.3,3.2078]
[1739462050292,0.75413,2651.7,2651.1,1.931]
[1739462050492,0.75413,2651.7,2651.1,2.68527]
[1739462050695,3.2078,2651.8,2651.1,1.931]
[1739462050892,0.00565312,2651.7,2651.1,1.931]
[1739462051097,0.00565312,2651.7,2651.4,0.75419]
[1739462051399,0.00565312,2651.7,2651.3,0.75421]
[1739462051597,0.00565312,2651.7,2651.1,1.931]
[1739462051797,0.75978312,2651.7,2651.2,0.75426]
[1739462052102,0.00565312,2651.7,2651.0,3.2078]
[1739462052893,0.00565312,2651.7,2651.3,0.75422]
[1739462053094,0.75978312,2651.7,2651.0,3.2078]
[1739462053301,0.75422,2651.4,2651.0,3.96211]
[1739462053898,0.75422,2651.4,2651.0,3.2078]
[1739462054196,0.00565312,2651.7,2651.0,3.2078]
[1739462054598,0.75419,2651.5,2651.1,0.75427]
[1739462054800,0.00565312,2651.7,2651.0,3.2078]
[1739462055002,0.75423,2651.3,2651.0,3.96211]
[1739462055202,0.75422,2651.4,2651.0,3.96211]
[1739462055402,0.75422,2651.4,2651.0,3.2078]
[1739462055603,0.00565312,2651.7,2651.0,3.2078]
[1739462055806,0.00565312,2651.7,2651.6,0.75414]
[1739462056006,0.00565312,2651.7,2651.5,0.75417]
[1739462056307,0.00565312,2651.7,2651.0,3.2078]
[1739462056498,0.7542,2651.5,2651.1,0.75428]
[1739462056698,0.7542,2651.4,2651.1,0.75428]
[1739462057095,0.5637,2651.6,2651.0,3.2078]
[1739462057296,3.2078,2651.5,2650.7,5.1388]
[1739462057496,3.2078,2651.5,2650.8,0.75435]
[1739462057699,3.2078,2651.5,2650.7,5.1388]
[1739462057902,0.75423,2651.3,2650.7,5.1388]
[1739462058299,0.75423,2651.3,2651.1,0.75427]
[1739462059096,3.2078,2651.5,2650.7,5.1388]
[1739462059300,0.75422,2651.4,2651.2,0.75424]
[1739462059596,0.5637,2651.6,2651.0,5.09357]
[1739462060297,0.5637,2651.6,2651.5,0.75417]
[1739462060500,0.5637,2651.6,2651.2,1.88564]
[1739462060501,0.00565312,2651.7,2651.6,0.75414]
[1739462061104,0.75416,2651.6,2651.4,0.75418]
[1739462061304,0.00565312,2651.7,2651.3,3.8078]
[1739462061305,0.00565312,2651.7,2651.6,0.75414]
[1739462062008,0.00565312,2651.7,2651.3,0.6]
[1739462062199,0.75418,2651.5,2651.4,0.7542]
[1739462062599,0.75416,2651.6,2651.5,0.75416]
[1739462062995,0.75418,2651.5,2651.4,0.75419]
[1739462063807,0.00565312,2651.7,2650.9,0.5715]
[1739462064103,0.75427,2651.2,2651.1,0.75428]
[1739462064605,3.8019,2651.4,2650.9,0.5715]
[1739462064804,3.8019,2651.4,2650.8,3.2078]
[1739462065005,0.75434,2650.9,2650.8,3.2078]
[1739462065203,3.8019,2651.4,2650.8,3.2078]
[1739462065400,0.75433,2651.0,2650.9,0.75433]
[1739462065804,3.8019,2651.4,2650.8,3.2078]
[1739462066104,3.8019,2651.4,2650.8,5.0937]
[1739462066305,3.8019,2651.4,2651.2,0.75425]
[1739462066604,0.5941,2651.4,2651.2,0.75425]
[1739462066812,0.5941,2651.4,2650.8,3.2078]
[1739462067009,0.75427,2651.2,2651.1,0.75428]
[1739462067310,1.34831,2651.4,2651.3,0.75423]
[1739462067509,0.5941,2651.4,2651.3,0.75423]
[1739462067811,1.3483,2651.4,2651.3,0.75423]
[1739462068005,0.75427,2651.2,2651.1,0.75427]
[1739462068200,5.68744,2651.4,2650.8,3.2078]
[1739462068406,0.75434,2650.9,2650.8,3.2078]
[1739462068715,3.8019,2651.4,2650.8,3.2078]
[1739462069100,5.68745,2651.4,2650.8,3.2078]
[1739462069306,0.7543,2651.1,2651.0,0.75431]
[1739462069509,3.8019,2651.4,2650.8,3.2078]
[1739462069716,1.88558,2651.3,2650.8,3.2078]
[1739462070211,0.75431,2651.1,2651.0,0.75431]
[1739462070603,0.5941,2651.4,2650.8,3.2078]
[1739462070810,3.2078,2651.6,2650.8,3.2078]
[1739462070811,3.2078,2651.6,2650.8,5.09369]
[1739462071018,3.2078,2651.6,2650.8,3.2078]
[1739462071019,0.75431,2651.1,2650.8,3.2078]
[1739462071308,0.75432,2651.0,2650.9,0.75433]
[1739462071810,0.75434,2650.9,2650.8,3.2078]
[1739462072014,0.75434,2650.9,2650.3,1.13315312]
[1739462072015,0.75449,2650.4,2650.3,0.00565312]
[1739462074718,3.90838488,2650.5,2650.3,0.00565312]
[1739462075011,0.5746,2650.8,2650.3,0.00565312]
[1739462075217,0.5746,2650.8,2650.6,0.75441]
[1739462075414,1.32897,2650.8,2650.6,0.75441]
[1739462075607,0.5746,2650.8,2650.7,0.7544]
[1739462075812,3.96217,2650.9,2650.6,0.75442]
[1739462076014,3.2078,2650.9,2650.8,0.75437]
[1739462076518,3.96216,2650.9,2650.7,0.75439]
[1739462076710,3.2078,2650.9,2650.3,3.21345312]
[1739462076910,3.2078,2650.9,2650.8,0.75437]
[1739462077116,3.2078,2650.9,2650.3,5.68029312]
[1739462077117,3.2078,2650.9,2650.3,3.21345312]
[1739462077813,3.96216,2650.9,2650.7,0.75438]
[1739462078120,3.2078,2650.9,2650.8,0.75437]
[1739462078318,3.2078,2651.2,2650.6,3.2078]
[1739462078520,3.2078,2651.5,2651.3,0.75422]
[1739462078816,3.2078,2651.5,2650.9,3.2078]
[1739462078817,0.75424,2651.3,2650.9,3.2078]
[1739462079013,0.75429,2651.1,2651.0,0.5689]
[1739462079219,0.75429,2651.1,2650.4,1.88616]
[1739462079220,5.09324,2651.5,2650.7,1.93]
[1739462079520,3.2078,2651.5,2650.7,1.93]
[1739462079720,1.88551,2651.4,2650.5,3.7767]
[1739462079925,0.75434,2651.0,2650.8,0.75436]
[1739462080109,0.7543,2651.1,2650.5,3.7767]
[1739462080415,0.5533,2651.4,2650.5,3.7767]
[1739462080623,0.75428,2651.2,2651.0,0.75431]
[1739462080810,3.2078,2651.2,2650.5,3.7767]
[1739462081012,0.75435,2650.9,2650.5,3.7767]
[1739462081219,0.75435,2650.9,2650.7,0.75438]
[1739462081422,3.2078,2651.2,2650.5,0.5689]
[1739462081609,3.2078,2651.2,2650.8,0.75436]
[1739462081610,0.5503,2651.1,2650.8,0.75436]
[1739462081816,0.5503,2651.1,2650.7,0.75439]
[1739462082017,0.75439,2650.8,2650.7,0.7544]
[1739462082314,0.5503,2651.1,2650.5,3.7767]
[1739462082517,1.93,2651.0,2650.5,3.2078]
[1739462082714,1.93,2651.0,2650.3,0.00565312]
[1739462082715,0.75449,2650.4,2650.3,0.00565312]
[1739462082926,0.75456,2650.2,2649.9,0.75462]
[1739462083417,3.2078,2650.4,2649.9,3.2078]
[1739462083614,1.93,2650.5,2649.9,3.2078]
[1739462084016,0.75456,2650.2,2650.0,0.75458]
[1739462084212,1.93565312,2650.5,2649.9,3.21345312]
[1739462084213,3.2078,2650.4,2649.9,0.00565312]
[1739462084425,3.2078,2650.4,2649.9,0.76027312]
[1739462084625,3.2078,2650.4,2649.9,0.00565312]
[1739462084929,0.7546,2650.0,2649.9,0.00565312]
[1739462085328,3.2078,2650.4,2649.9,0.00565312]
[1739462085525,0.75458,2650.1,2649.9,0.76025312]
[1739462086423,3.2078,2650.4,2649.9,0.00565312]
[1739462086725,0.75458,2650.1,2650.0,0.7546]
[1739462087227,0.75457,2650.2,2650.0,0.7546]
[1739462087517,0.00565312,2650.5,2650.4,0.75449]
[1739462089527,0.00565312,2650.5,2650.4,6.75449]
[1739462089825,3.2078,2651.1,2650.4,6.0]
[1739462090027,3.96211,2651.1,2651.0,0.75432]
[1739462090325,3.2078,2651.1,2650.5,3.2078]
[1739462090529,0.75436,2650.9,2650.8,0.75436]
[1739462090919,0.75436,2650.9,2650.5,3.2078]
[1739462090920,3.21345312,2651.1,2650.4,3.2078]
[1739462091116,1.88587,2650.9,2650.3,0.5962]
[1739462091321,3.2078,2650.8,2650.3,3.804]
[1739462091531,5.09921312,2651.1,2650.3,3.804]
[1739462091830,5.09921312,2651.1,2650.6,0.75442]
[1739462091831,0.75442,2650.7,2650.6,0.75442]
[1739462092216,0.75448,2650.5,2650.4,0.75446]
[1739462092414,5.09377,2650.8,2650.0,3.2078]
[1739462092615,0.00565312,2651.1,2650.6,0.75443]
[1739462092616,0.5893,2650.7,2650.6,0.75443]
[1739462092933,0.75437,2650.9,2650.8,0.75436]
[1739462093629,0.75437,2650.9,2650.8,0.75435]
[1739462093824,0.75433,2651.0,2650.9,0.75433]
[1739462094022,0.75436,2650.9,2650.8,0.75436]
[1739462094231,0.7544,2650.8,2650.7,0.75438]
[1739462094828,5.09920312,2651.1,2650.5,0.5793]
[1739462095324,3.21345312,2651.1,2650.4,3.2078]
[1739462095632,7.798393,2650.5,2649.4,3.2078]
[1739462095835,0.75472,2649.6,2649.4,0.75476]
[1739462096025,3.2078,2649.9,2649.2,3.2078]
[1739462096331,5.1378,2649.9,2649.2,3.2078]
[1739462096631,0.75475,2649.5,2649.3,0.7548]
[1739462096928,0.00565312,2649.8,2649.3,0.00565312]
[1739462097116,0.75477,2649.4,2649.3,0.00565312]
[1739462097832,0.75471,2649.6,2649.3,0.76044312]
[1739462098026,0.75475,2649.5,2649.3,0.76044312]
[1739462098331,3.21345312,2649.8,2649.3,0.00565312]
[1739462098531,0.00565312,2649.8,2649.7,0.75469]
[1739462099030,0.76032312,2649.8,2649.6,0.75471]
[1739462099226,0.00565312,2649.8,2649.5,3.2078]
[1739462099533,0.00565312,2649.8,2649.7,0.75469]
[1739462100030,0.00565312,2649.8,2649.5,3.2078]
[1739462100430,0.00565312,2649.8,2649.6,0.5704]
[1739462100633,0.75469,2649.7,2649.6,0.5704]
[1739462100927,0.76032312,2649.8,2649.6,1.3251]
[1739462101123,0.75469,2649.7,2649.6,0.5704]
[1739462101324,0.00565312,2649.8,2649.6,0.5704]
[1739462101525,0.00565312,2649.8,2649.7,0.75469]
[1739462102224,0.75443,2650.7,2649.8,1.88665]
[1739462102423,3.7683,2650.8,2649.9,3.2078]
[1739462102424,7.68227249,2650.8,2649.9,3.2078]
[1739462102731,0.75451,2650.3,2649.9,3.2078]
[1739462102927,7.68227249,2650.8,2649.9,3.2078]
[1739462103229,0.75454,2650.3,2649.9,3.2078]
[1739462103440,0.75448,2650.5,2650.3,0.75451]
[1739462103925,0.75447,2650.5,2650.4,0.75448]
[1739462104231,0.00565312,2650.6,2649.9,3.2078]
[1739462104525,0.00565312,2650.6,2650.2,3.2078]
[1739462104729,0.00565312,2650.6,2650.5,0.75446]
[1739462104932,0.76008312,2650.6,2650.5,0.75446]
[1739462105241,0.76008312,2650.6,2649.7,3.91397249]
[1739462105242,0.75469,2649.7,2649.6,4.3771]
[1739462105422,0.75469,2649.7,2649.3,0.00565312]
[1739462105423,0.75477,2649.4,2649.3,0.00565312]
[1739462106828,9.80654249,2649.4,2649.3,0.00565312]
[1739462107035,0.75497,2648.7,2648.6,0.5853]
[1739462107333,0.75503,2648.5,2648.4,0.5975]
[1739462107531,3.2078,2649.0,2648.4,0.5975]
[1739462107733,0.563,2648.9,2648.4,0.5975]
[1739462108233,0.56865312,2648.9,2648.4,0.60315312]
[1739462108430,0.75503,2648.5,2648.4,0.00565312]
[1739462109433,0.75503,2648.5,2647.5,0.5901]
[1739462109434,5.9956373,2648.5,2647.5,0.5901]
[1739462109734,3.2078,2648.0,2647.5,0.0043627]
[1739462109933,3.2078,2648.0,2647.5,0.7596527]
[1739462110139,3.2078,2648.0,2647.1,40.8]
[1739462110329,3.2078,2647.9,2646.9,3.2078]
[1739462110640,3.2078,2647.9,2647.0,0.75543]
[1739462110836,3.96311,2647.6,2647.0,0.75543]
[1739462111033,3.96311,2647.6,2646.9,3.2078]
[1739462111034,3.2078,2647.6,2646.9,3.2078]
[1739462111240,5.14346455,2647.6,2646.9,0.0043627]
[1739462111537,0.75538,2647.3,2646.9,0.7598327]
[1739462111739,0.75538,2647.3,2646.9,0.0043627]
[1739462111945,3.21346455,2647.6,2646.8,3.2078]
[1739462112239,5.14346455,2647.6,2646.8,0.0043627]
[1739462112433,3.96321,2647.2,2646.8,0.0043627]
[1739462112627,0.75545,2647.1,2646.8,0.0043627]
[1739462112933,0.30939661,2647.1,2646.8,0.0043627]
[1739462113139,0.75576,2646.0,2645.5,0.75587]
[1739462113340,3.2078,2646.4,2645.5,0.0043627]
[1739462113638,3.2078,2646.4,2645.4,3.2078]
[1739462113639,0.00566455,2646.2,2645.4,3.2078]
[1739462113836,4.59812518,2646.0,2645.0,3.2078]
[1739462114037,5.14346455,2646.2,2645.0,40.8043627]
[1739462114235,3.2078,2645.8,2645.0,0.0043627]
[1739462114437,1.93,2645.7,2645.0,0.0043627]
[1739462114735,3.2078,2645.2,2644.2,0.5971]
[1739462114943,3.2078,2645.2,2644.2,0.6014627]
[1739462114944,3.2078,2644.9,2644.2,0.6014627]
[1739462115134,3.2078,2644.6,2644.2,0.0043627]
[1739462115341,0.75619,2644.5,2644.2,0.0043627]
[1739462115536,3.2078,2644.6,2643.4,3.2078]
[1739462115740,0.75627,2644.2,2643.5,0.75644]
[1739462115938,3.2078,2644.3,2643.5,0.0043627]
[1739462116237,3.2078,2644.3,2643.0,14.31117392]
[1739462116238,3.2078,2644.3,2643.6,3.2078]
[1739462116433,3.2078,2644.6,2644.2,3.2078]
[1739462116744,0.00566455,2644.7,2644.6,0.75614]
[1739462117136,0.00566455,2644.7,2644.5,3.2078]
[1739462117336,0.00566455,2644.7,2644.6,0.75614]
[1739462117640,3.7562,2645.6,2644.6,6.0]
[1739462117937,3.2078,2645.9,2645.2,3.2078]
[1739462118144,0.300286,2646.2,2645.2,3.2078]
[1739462118145,3.2078,2646.2,2645.2,3.2078]
[1739462118336,0.5452,2646.4,2645.8,3.2078]
[1739462118642,1.96,2646.5,2645.8,3.2078]
[1739462119047,0.00566455,2646.4,2646.1,3.2078]
[1739462119544,1.77146953,3881.7,2646.1,3.2078]
[1739462119545,3.753,2647.2,2646.1,3.2078]
[1739462119741,3.753,2647.2,2645.9,1.959]
[1739462119742,3.753,2647.2,2646.3,3.2078]
[1739462120043,3.753,2647.2,2646.6,3.96336]
[1739462120244,3.2078,2647.2,2646.6,3.2078]
[1739462120537,3.2078,2647.6,2647.0,3.2078]
[1739462120735,0.00566455,2647.2,2647.1,0.75543]
[1739462121334,0.00566455,2647.2,2647.0,3.96324]
[1739462121542,0.00566455,2647.2,2647.0,3.2078]
[1739462121745,0.00566455,2647.2,2647.1,0.75543]
[1739462121939,0.00566455,2647.2,2647.0,3.2078]
[1739462122135,0.00566455,2647.2,2646.6,3.2078]
[1739462122450,0.00566455,2647.2,2646.9,3.2078]
[1739462122639,0.76108455,2647.2,2646.9,3.2078]
[1739462122839,0.00566455,2647.2,2646.5,3.2078]
[1739462123046,0.00566455,2647.2,2646.2,3.96347]
[1739462123047,0.75556,2646.7,2646.2,3.96347]
[1739462123240,0.75559,2646.6,2646.2,3.2078]
[1739462123438,0.75555,2646.7,2646.2,3.96348]
[1739462123639,0.75562,2646.5,2646.2,3.2078]
[1739462123943,3.2078,2646.7,2646.2,3.2078]
[1739462124141,0.75567,2646.3,2645.8,3.96924455]
[1739462124343,0.75563,2646.4,2645.8,3.21346455]
[1739462124542,3.2078,2646.7,2646.1,3.2078]
[1739462124748,3.2078,2646.7,2646.4,0.75561]
[1739462124948,3.2078,2646.7,2646.1,3.2078]
[1739462124949,3.2078,2646.7,2646.2,0.75567]
[1739462125135,3.2078,2646.7,2645.8,3.21346455]
[1739462125455,3.2078,2646.4,2645.8,3.21346455]
[1739462125635,3.86193,2646.6,2645.8,0.00566455]
[1739462125636,3.2078,2646.1,2645.8,0.00566455]
[1739462125945,0.75577,2645.9,2645.8,0.00566455]
[1739462127649,6.75577,2645.9,2645.8,0.00566455]
[1739462127858,0.75584,2645.7,2645.3,0.75593]
[1739462128146,0.75581,2645.8,2645.4,0.75589]
[1739462128450,5.93052,2646.1,2645.7,0.7558]
[1739462128742,3.2078,2646.1,2645.5,5.1748]
[1739462128948,3.2078,2646.1,2645.9,0.75576]
[1739462129145,0.00566455,2646.2,2646.0,3.2078]
[1739462129352,0.00566455,2646.2,2646.1,0.75571]
[1739462130344,0.00566455,2646.2,2646.0,5.1768]
[1739462130345,0.00566455,2646.2,2646.0,3.96353]
[1739462130549,0.00566455,2646.2,2646.0,5.1748]
[1739462130742,0.00566455,2646.2,2646.1,0.75571]
[1739462131138,0.00566455,2646.2,2646.0,5.1748]
[1739462131344,0.00566455,2646.2,2646.0,3.2078]
[1739462131541,0.00566455,2646.2,2645.6,0.00566455]
[1739462131542,0.75571,2646.1,2645.8,0.75578]
[1739462131844,0.00566455,2646.2,2645.6,5.18346455]
[1739462132147,0.75575,2646.0,2645.8,0.75579]
[1739462132350,0.75572,2646.1,2645.8,0.75579]
[1739462132547,0.00566455,2646.2,2645.9,0.75577]
[1739462132750,0.00566455,2646.2,2645.6,3.21346455]
[1739462133053,0.00566455,2646.2,2646.1,0.75571]
[1739462134546,0.00566455,2646.2,2646.1,6.75571]
[1739462134745,3.73927,2647.3,2647.1,0.75541]
[1739462135051,3.73927,2647.3,2646.2,1.8892]
[1739462135052,2.98388,2647.3,2647.2,0.7554]
[1739462135253,3.73926,2647.3,2647.1,0.75541]
[1739462135448,2.98388,2647.3,2647.0,3.2078]
[1739462135646,2.98388,2647.3,2647.2,0.7554]
[1739462137348,2.98388,2647.3,2646.9,0.00566455]
[1739462137647,3.96326,2647.0,2646.9,0.00566455]
[1739462138653,9.2078,2647.0,2645.8,3.2078]
[1739462138840,0.75568,2646.2,2646.0,0.75573]
[1739462139045,0.75564,2646.4,2646.1,0.75569]
[1739462139245,0.75564,2646.4,2646.2,0.75568]
[1739462139547,2.71755,2646.7,2646.5,0.75558]
[1739462139749,0.75563,2646.5,2646.1,3.2078]
[1739462139953,5.1698,2646.7,2646.2,0.75568]
[1739462140152,0.75564,2646.4,2646.0,0.00566455]
[1739462140451,0.75564,2646.4,2646.2,0.75568]
[1739462140651,5.1698,2646.7,2646.2,0.75568]
[1739462140954,0.75559,2646.6,2646.0,0.00566455]
[1739462141251,5.1698,2646.7,2646.1,3.2078]
[1739462141545,0.75559,2646.6,2646.3,0.75563]
[1739462141742,5.1698,2646.7,2646.3,0.75563]
[1739462141945,0.75561,2646.5,2646.3,0.75564]
[1739462142338,5.1698,2646.7,2646.3,0.75564]
[1739462142542,0.75563,2646.4,2646.0,3.21346455]
[1739462142744,0.75561,2646.5,2646.3,0.75565]
[1739462142951,5.1698,2646.7,2646.3,0.75565]
[1739462143147,5.1698,2646.7,2646.4,0.75561]
[1739462143349,5.92535,2646.7,2646.5,0.75558]
[1739462143550,0.75555,2646.7,2646.3,3.2078]
[1739462143752,0.75555,2646.7,2646.5,0.75557]
[1739462144055,0.75555,2646.7,2646.3,3.2078]
[1739462144256,5.1598,2647.0,2646.3,3.2078]
[1739462144664,0.75556,2646.7,2646.5,0.75558]
[1739462145159,5.1558,2647.0,2646.3,3.2078]
[1739462145552,0.75558,2646.6,2646.3,3.2078]
[1739462145755,5.1558,2647.0,2646.3,3.2078]
[1739462146445,0.75556,2646.7,2646.6,0.75556]
[1739462146846,0.75552,2646.8,2646.7,0.75552]
[1739462147058,3.96327,2647.0,2646.9,0.75548]
[1739462147357,3.2078,2647.0,2646.9,0.75548]
[1739462148255,2.98388,2647.3,2647.2,0.7554]
[1739462148658,6.19168,2647.3,2646.6,1.94]
[1739462148953,6.19168,2647.3,2646.7,1.88886]
[1739462149161,0.75544,2647.1,2647.0,0.75544]
[1739462149453,6.19168,2647.3,2646.7,0.75552]
[1739462149454,0.75553,2646.8,2646.7,0.75552]
[1739462149655,6.19168,2647.3,2646.5,3.2078]
[1739462149857,0.75544,2647.1,2647.0,0.75544]
[1739462150253,6.19168,2647.3,2646.5,3.2078]
[1739462150658,0.75549,2646.9,2646.8,0.75549]
[1739462151051,1.88872,2646.9,2646.4,0.5658]
[1739462151256,3.2078,2646.7,2646.0,0.00566455]
[1739462151652,0.7557,2646.2,2646.1,0.75571]
[1739462151866,1.88893,2646.6,2646.1,0.75571]
[1739462152067,3.2078,2646.7,2646.0,0.00566455]
[1739462152251,0.75567,2646.3,2646.2,0.75568]
[1739462152654,3.2078,2646.7,2646.0,0.00566455]
[1739462152860,0.75571,2646.1,2646.0,0.76139455]
[1739462153063,0.7557,2646.2,2646.0,0.76139455]
[1739462153260,0.75571,2646.1,2646.0,0.00566455]
[1739462154151,3.96351,2646.1,2646.0,0.00566455]
[1739462155163,4.26731991,2646.1,2646.0,0.00566455]
[1739462155356,3.96351,2646.1,2646.0,0.00566455]
[1739462155966,7.80592518,2646.1,2645.1,3.2078]
[1739462156156,0.75592,2645.4,2645.2,0.75596]
[1739462156356,3.2078,2645.7,2645.1,3.2078]
[1739462156563,0.75587,2645.6,2645.4,0.75591]
[1739462156760,3.2078,2645.7,2645.1,3.2078]
[1739462156968,3.7761,2646.0,2645.1,5.09776]
[1739462157167,0.00566455,2645.7,2645.6,0.75586]
[1739462158065,0.00566455,2645.7,2645.4,3.2078]
[1739462158269,0.7559,2645.5,2645.3,0.75592]
[1739462158567,0.75591,2645.4,2645.1,3.2078]
[1739462158778,0.7559,2645.5,2645.1,3.2078]
[1739462159071,0.7559,2645.5,2645.3,0.75592]
[1739462159372,3.2078,2645.6,2645.0,1.1623]
[1739462159574,0.00566455,2645.7,2645.0,1.1623]
[1739462159871,0.75589,2645.5,2645.4,0.75591]
[1739462160080,0.75589,2645.5,2645.0,1.1623]
[1739462160275,0.00566455,2645.7,2645.0,1.1623]
[1739462160477,0.00566455,2645.7,2645.2,3.2078]
[1739462160875,0.00566455,2645.7,2645.6,0.75586]
[1739462161075,0.00566455,2645.7,2645.4,0.75589]
[1739462161076,0.75588,2645.6,2645.4,0.75589]
[1739462161274,0.00566455,2645.7,2645.2,3.2078]
[1739462161474,0.00566455,2645.7,2645.6,0.75586]
[1739462162282,0.76149455,2645.7,2645.6,0.75586]
[1739462162475,0.00566455,2645.7,2645.6,0.75586]
[1739462162888,0.75563,2646.4,2646.3,0.75563]
[1739462163182,3.2078,2646.5,2646.4,0.75563]
[1739462163872,3.2078,2646.5,2646.0,3.2078]
[1739462164076,3.2078,2646.5,2646.2,0.00566455]
[1739462164284,0.75566,2646.3,2646.2,0.00566455]
[1739462164782,0.00566455,2646.7,2646.2,0.00566455]
[1739462164982,0.00566455,2646.7,2646.6,0.75557]
[1739462165283,0.00566455,2646.7,2646.3,3.2078]
[1739462165481,0.00566455,2646.7,2646.5,0.75558]
[1739462165678,0.00566455,2646.7,2646.2,0.00566455]
[1739462165872,0.75558,2646.6,2646.2,0.00566455]
[1739462166077,3.2078,2646.6,2646.2,0.00566455]
[1739462166287,0.75566,2646.3,2646.2,0.00566455]